bitfinex/quotes_BTCUSD_20250330
["timestamp","ask_amount","ask_price","bid_price","bid_amount"]
[1743321920968,0.00080878,83367.0,83366.0,1.58148418]
[1743321921319,0.00080878,83367.0,83366.0,1.58748418]
[1743321922116,0.00080878,83367.0,83366.0,1.58448418]
[1743321922572,0.00080878,83367.0,83366.0,1.59048418]
[1743321927421,0.0001685,83368.0,83367.0,0.43596557]
[1743321927587,0.0001685,83368.0,83367.0,0.6869504]
[1743321928106,0.0001685,83368.0,83367.0,0.6917594]
[1743321928405,0.3,83395.0,83388.0,0.23984]
[1743321928610,0.30012435,83395.0,83389.0,0.14758085]
[1743321928808,0.30012435,83395.0,83391.0,0.01454085]
[1743321929957,0.01208152,83395.0,83391.0,0.01454085]
[1743321930084,0.01208152,83395.0,83391.0,0.01554085]
[1743321931156,0.01208152,83395.0,83391.0,0.01654085]
[1743321931510,0.01208152,83395.0,83392.0,0.0255327]
[1743321931729,0.01208152,83395.0,83393.0,0.59369837]
[1743321932112,0.01208152,83395.0,83394.0,0.02551437]
[1743321933614,0.01208152,83395.0,83394.0,0.04973694]
[1743321933814,0.25190352,83395.0,83394.0,0.04973694]
[1743321934469,0.25190352,83395.0,83394.0,0.18269694]
[1743321934841,0.26389452,83395.0,83394.0,0.18269694]
[1743321935051,0.26389452,83395.0,83394.0,0.18265694]
[1743321935250,0.26389452,83395.0,83394.0,0.18365694]
[1743321936181,0.26389452,83395.0,83394.0,0.18465694]
[1743321939677,0.56389452,83395.0,83394.0,0.18465694]
[1743321941819,0.56389452,83395.0,83394.0,0.16043437]
[1743321949098,0.56389452,83395.0,83394.0,0.02751437]
[1743321949310,0.71832935,83395.0,83394.0,0.16027437]
[1743321949509,0.68037218,83395.0,83394.0,0.16061157]
[1743321950801,0.64139452,83395.0,83394.0,0.16061157]
[1743321953307,0.64139452,83395.0,83394.0,0.02785157]
[1743321958184,0.56389452,83395.0,83394.0,0.02785157]
[1743321959790,0.56389452,83395.0,83394.0,0.10106645]
[1743321960184,0.56389452,83395.0,83394.0,0.02785157]
[1743321967642,0.011991,83395.0,83394.0,0.02785157]
[1743321967950,0.551813,83395.0,83394.0,0.02785157]
[1743321969251,0.56415222,83395.0,83394.0,0.02785157]
[1743321969824,0.01233922,83395.0,83394.0,0.02785157]
[1743321970025,0.239822,83395.0,83394.0,0.10106645]
[1743321970687,0.251813,83395.0,83394.0,0.10106645]
[1743321972624,0.263657,83395.0,83394.0,0.10106645]
[1743321972968,0.263657,83395.0,83394.0,0.02785157]
[1743321980312,0.563657,83395.0,83394.0,0.02785157]
[1743321980508,0.563657,83395.0,83394.0,0.16025157]
[1743321982204,0.563657,83395.0,83394.0,0.02785157]
[1743321982418,0.563657,83395.0,83394.0,0.16021157]
[1743321982818,0.563657,83395.0,83394.0,0.02785157]
[1743321982997,0.563657,83395.0,83394.0,0.16021157]
[1743321984767,0.5638256,83395.0,83394.0,0.16021157]
[1743322001074,0.5638256,83395.0,83394.0,0.16005157]
[1743322003132,0.5638256,83395.0,83394.0,0.16001157]
[1743322006053,0.5638256,83395.0,83394.0,0.02785157]
[1743322006281,0.5638256,83395.0,83394.0,0.15997157]
[1743322008620,0.5638256,83395.0,83394.0,0.01161157]
[1743322008621,0.6407256,83395.0,83394.0,0.01161157]
[1743322008819,0.6407256,83395.0,83394.0,0.00630419]
[1743322009014,0.67970326,83395.0,83394.0,0.01654613]
[1743322009221,0.55183,83389.0,83388.0,0.54213463]
[1743322010501,0.55183,83389.0,83388.0,0.54413463]
[1743322010756,0.3,83389.0,83388.0,0.61176809]
[1743322010942,0.011991,83389.0,83388.0,0.62113463]
[1743322011139,0.311991,83389.0,83388.0,0.62113463]
[1743322015079,0.311991,83389.0,83388.0,0.64545661]
[1743322016331,0.311991,83389.0,83388.0,0.66202031]
[1743322018460,0.311991,83389.0,83388.0,0.66235751]
[1743322019281,0.311991,83389.0,83388.0,0.79443751]
[1743322033580,0.311991,83389.0,83388.0,0.71943751]
[1743322034195,0.311991,83389.0,83388.0,0.56303553]
[1743322034407,0.35096866,83389.0,83388.0,0.69511553]
[1743322036400,0.311991,83389.0,83388.0,0.69511553]
[1743322048400,0.311991,83389.0,83388.0,0.74341553]
[1743322052872,0.311991,83389.0,83388.0,0.75795638]
[1743322056119,0.311991,83389.0,83388.0,0.62587638]
[1743322056335,0.311991,83389.0,83388.0,0.75795638]
[1743322060963,0.03759579,83389.0,83388.0,0.75795638]
[1743322061194,0.011991,83389.0,83388.0,0.75795638]
[1743322061418,0.011991,83389.0,83388.0,0.70965638]
[1743322061697,0.011991,83389.0,83388.0,0.57757638]
[1743322061850,0.011991,83389.0,83388.0,0.70965638]
[1743322062758,0.20183,83390.0,83389.0,0.01454085]
[1743322063159,0.20183,83390.0,83389.0,0.03110181]
[1743322063359,0.213821,83390.0,83389.0,0.03110181]
[1743322063558,0.213821,83390.0,83389.0,0.10206717]
[1743322064083,0.213821,83390.0,83389.0,0.10606717]
[1743322065902,0.213821,83390.0,83389.0,0.03510181]
[1743322068593,0.213821,83390.0,83389.0,0.02056096]
[1743322068792,0.213821,83390.0,83389.0,0.15264096]
[1743322069113,0.25279866,83390.0,83389.0,0.15264096]
[1743322070519,0.213821,83390.0,83389.0,0.15264096]
[1743322071382,0.3,83390.0,83389.0,0.15264096]
[1743322071591,0.3,83390.0,83389.0,0.02056096]
[1743322071592,0.62693,83390.0,83389.0,0.02056096]
[1743322071815,0.62693,83390.0,83389.0,0.15264096]
[1743322072176,0.62693,83390.0,83389.0,0.02056096]
[1743322072350,0.62693,83390.0,83389.0,0.01377191]
[1743322072554,0.62693,83390.0,83389.0,0.01942937]
[1743322074666,0.62693,83390.0,83389.0,0.01781212]
[1743322076553,0.6270986,83390.0,83389.0,0.01147212]
[1743322077253,0.011991,83389.0,83388.0,0.54247183]
[1743322078492,0.011991,83389.0,83388.0,0.54447183]
[1743322078697,0.011991,83389.0,83388.0,0.54647183]
[1743322080117,0.011991,83389.0,83388.0,0.55798472]
[1743322085222,0.011991,83389.0,83388.0,0.01585009]
[1743322085434,0.011991,83389.0,83388.0,0.0043372]
[1743322089066,0.0121596,83389.0,83388.0,0.0043372]
[1743322089927,2.0671476,83389.0,83388.0,0.0043372]
[1743322090124,1.8115976,83389.0,83388.0,0.0043372]
[1743322090602,1.1451776,83389.0,83388.0,0.0043372]
[1743322091293,1.0816776,83389.0,83388.0,0.0043372]
[1743322091693,0.6254116,83389.0,83388.0,0.0043372]
[1743322091913,0.5111356,83389.0,83388.0,0.0043372]
[1743322097549,0.5120936,83389.0,83388.0,0.0043372]
[1743322097764,0.3121596,83389.0,83388.0,0.0043372]
[1743322097897,0.0121596,83389.0,83388.0,0.10067805]
[1743322098098,0.3121596,83389.0,83388.0,0.11098569]
[1743322098463,0.3121596,83389.0,83388.0,0.14907805]
[1743322107733,0.3121596,83389.0,83388.0,0.28115805]
[1743322107932,0.3121596,83389.0,83388.0,0.0043372]
[1743322108152,0.551861,83379.0,83378.0,0.40442972]
[1743322108267,0.551861,83379.0,83378.0,0.53650972]
[1743322108485,0.551861,83379.0,83378.0,0.54613143]
[1743322109696,0.551861,83379.0,83378.0,0.55113143]
[1743322110991,0.551861,83379.0,83378.0,0.55513143]
[1743322112598,0.551861,83379.0,83378.0,0.15070171]
[1743322115899,0.551861,83379.0,83378.0,0.01862171]
[1743322116105,0.59083866,83379.0,83378.0,0.01862171]
[1743322117022,0.59083866,83379.0,83378.0,0.00962171]
[1743322117218,0.59083866,83379.0,83378.0,0.01762171]
[1743322117379,0.59083866,83379.0,83378.0,0.004]
[1743322117752,1.67304266,83379.0,83378.0,0.006]
[1743322117953,1.67304266,83379.0,83378.0,0.01562171]
[1743322118154,1.67304266,83379.0,83378.0,0.006]
[1743322118281,1.68210142,83379.0,83378.0,0.01562171]
[1743322118492,1.68210142,83379.0,83378.0,0.01362171]
[1743322118910,1.68210142,83379.0,83378.0,0.002]
[1743322119137,1.68210142,83379.0,83378.0,0.01001809]
[1743322119345,1.68210142,83379.0,83378.0,0.005]
[1743322119548,1.68210142,83379.0,83378.0,0.01301809]
[1743322119745,1.68210142,83379.0,83375.0,0.57136]
[1743322119964,0.55187,83376.0,83375.0,0.57136]
[1743322120166,1.710074,83376.0,83375.0,0.57136]
[1743322120322,0.55187,83376.0,83375.0,0.57136]
[1743322120523,1.710074,83376.0,83375.0,0.57136]
[1743322120720,0.871466,83376.0,83375.0,0.57136]
[1743322120924,0.55187,83376.0,83375.0,0.57436]
[1743322121177,0.55187,83376.0,83375.0,0.57636]
[1743322121375,0.55187,83376.0,83375.0,0.57436]
[1743322121729,0.55187,83376.0,83375.0,0.57736]
[1743322122214,0.55187,83376.0,83375.0,0.57436]
[1743322122550,0.55187,83376.0,83375.0,0.57636]
[1743322123585,0.55187,83376.0,83375.0,0.005]
[1743322127284,0.55187,83376.0,83375.0,0.01302776]
[1743322127882,0.55087713,83376.0,83375.0,0.01302776]
[1743322133741,0.25087713,83376.0,83375.0,0.09192776]
[1743322133881,0.55087713,83376.0,83375.0,0.10646861]
[1743322136322,0.3,83376.0,83375.0,0.11846261]
[1743322136522,0.0001686,83388.0,83383.0,0.239856]
[1743322136751,0.0001686,83388.0,83385.0,0.14314085]
[1743322137195,0.5400106,83388.0,83387.0,0.01454085]
[1743322137398,0.0001686,83388.0,83387.0,0.14666085]
[1743322137595,0.2400106,83388.0,83387.0,0.14666085]
[1743322137798,0.0001686,83388.0,83387.0,0.15465432]
[1743322138050,0.2520026,83388.0,83387.0,0.15465432]
[1743322138455,0.2520026,83388.0,83387.0,0.02253432]
[1743322138671,0.011992,83387.0,83386.0,0.01454085]
[1743322139221,0.011992,83387.0,83386.0,0.14666085]
[1743322139390,0.011992,83387.0,83386.0,0.01454085]
[1743322139597,0.011992,83387.0,83386.0,0.0225371]
[1743322139782,0.011992,83387.0,83386.0,0.14862085]
[1743322140183,0.011992,83387.0,83386.0,0.1566171]
[1743322141491,0.011992,83387.0,83386.0,0.18064426]
[1743322141955,0.011992,83387.0,83386.0,0.18264426]
[1743322143182,0.011992,83387.0,83386.0,0.1586171]
[1743322145246,0.0001686,83388.0,83386.0,0.1586171]
[1743322145445,0.2400116,83388.0,83386.0,0.1586171]
[1743322145687,0.2520036,83388.0,83386.0,0.1586171]
[1743322146281,0.011992,83387.0,83386.0,0.1566171]
[1743322146483,0.2520036,83388.0,83386.0,0.1566171]
[1743322146666,0.0001686,83388.0,83386.0,0.1710074]
[1743322146867,0.0001686,83388.0,83386.0,0.1586171]
[1743322147079,0.0001686,83388.0,83386.0,0.1566171]
[1743322148058,0.0001686,83388.0,83386.0,0.1546171]
[1743322148259,0.3001686,83388.0,83387.0,0.58582085]
[1743322148459,0.3001686,83388.0,83387.0,0.59381432]
[1743322149499,0.3001686,83388.0,83387.0,0.60618745]
[1743322149695,0.3001686,83388.0,83387.0,0.60818745]
[1743322149924,0.3001686,83388.0,83387.0,0.59781432]
[1743322151414,0.0001686,83388.0,83387.0,0.59781432]
[1743322154533,0.0001686,83388.0,83387.0,1.10083604]
[1743322154674,0.0001686,83388.0,83387.0,1.14793604]
[1743322157780,0.0001686,83388.0,83387.0,1.13594404]
[1743322158603,0.0001686,83388.0,83387.0,1.27869158]
[1743322160248,0.0001686,83388.0,83387.0,1.15840675]
[1743322161566,0.0001686,83388.0,83387.0,1.41024375]
[1743322166529,0.0001686,83388.0,83387.0,1.40824375]
[1743322167253,0.0001686,83388.0,83387.0,1.40624375]
[1743322167505,0.0001686,83388.0,83387.0,1.41824375]
[1743322167881,0.0001686,83388.0,83387.0,1.53252858]
[1743322168205,0.0001686,83388.0,83387.0,1.53852858]
[1743322176946,0.0001686,83388.0,83387.0,1.41824375]
[1743322177567,0.0001686,83388.0,83387.0,1.39578104]
[1743322179059,0.0001686,83388.0,83387.0,1.52786104]
[1743322184516,0.0001686,83388.0,83387.0,1.39578104]
[1743322184629,0.0001686,83388.0,83387.0,1.52794104]
[1743322185136,0.0001686,83388.0,83387.0,1.55790026]
[1743322186584,0.0001686,83388.0,83387.0,1.55760026]
[1743322191106,0.0001686,83388.0,83387.0,1.52764104]
[1743322192687,0.0001686,83388.0,83387.0,1.44604104]
[1743322194423,0.004481,84909.0,83387.0,1.44604104]
[1743322194566,0.004481,84909.0,83395.0,0.01454085]
[1743322194567,4.708e-05,83396.0,83395.0,0.01454085]
[1743322194771,4.708e-05,83396.0,83395.0,0.18296387]
[1743322194975,4.708e-05,83396.0,83395.0,0.15462869]
[1743322195749,4.708e-05,83396.0,83395.0,0.15962869]
[1743322195988,4.708e-05,83396.0,83395.0,0.16562869]
[1743322196141,4.708e-05,83396.0,83395.0,0.17062869]
[1743322196342,4.708e-05,83396.0,83395.0,0.74174869]
[1743322196544,4.708e-05,83396.0,83395.0,0.86203352]
[1743322197247,0.00021568,83396.0,83395.0,0.86203352]
[1743322197574,0.00021568,83396.0,83395.0,1.26646324]
[1743322198082,0.00021568,83396.0,83395.0,1.26146324]
[1743322198289,0.00021568,83396.0,83395.0,1.14617841]
[1743322200012,0.00021568,83396.0,83395.0,1.14117841]
[1743322206745,0.00021568,83396.0,83395.0,1.14109841]
[1743322208465,0.00021568,83396.0,83395.0,1.00939561]
[1743322208677,0.01220568,83396.0,83395.0,1.14143561]
[1743322210426,0.00021568,83396.0,83395.0,1.14143561]
[1743322210950,0.00021568,83396.0,83395.0,1.26172044]
[1743322212496,0.01220568,83396.0,83395.0,1.26172044]
[1743322213091,0.01220568,83396.0,83395.0,1.14143561]
[1743322214205,0.01220568,83396.0,83395.0,1.00939561]
[1743322214422,0.01220568,83396.0,83395.0,1.14143561]
[1743322215195,0.01220568,83396.0,83395.0,0.73700589]
[1743322229341,0.53901468,83397.0,83395.0,0.73700589]
[1743322229491,0.53901468,83397.0,83396.0,0.08537758]
[1743322229697,0.53901468,83397.0,83396.0,0.02250591]
[1743322229905,0.53901468,83397.0,83396.0,0.59366591]
[1743322231213,0.53901468,83397.0,83396.0,0.60466591]
[1743322231437,0.53901468,83397.0,83396.0,0.61712271]
[1743322233762,0.53901468,83397.0,83396.0,0.64115042]
[1743322235974,0.54820087,83397.0,83396.0,0.60258186]
[1743322236218,0.54820087,83397.0,83396.0,0.73462186]
[1743322237443,0.54820087,83397.0,83396.0,0.60258186]
[1743322237602,0.54820087,83397.0,83396.0,0.73462186]
[1743322242228,0.54820087,83397.0,83396.0,0.60258186]
[1743322242454,0.77787887,83397.0,83396.0,0.59904145]
[1743322242655,0.89695653,83397.0,83396.0,0.73112145]
[1743322243734,0.89695653,83397.0,83396.0,0.58804145]
[1743322243935,0.89695653,83397.0,83396.0,0.72712145]
[1743322245101,2.49336353,83397.0,83396.0,0.72712145]
[1743322245669,2.49336353,83397.0,83396.0,0.72745865]
[1743322246253,2.37354213,83397.0,83396.0,0.72745865]
[1743322246469,2.37354213,83397.0,83396.0,0.42063232]
[1743322246674,0.551861,83379.0,83378.0,0.97562972]
[1743322246844,0.756934,83379.0,83378.0,0.70328]
[1743322247052,0.551861,83379.0,83378.0,0.70332708]
[1743322247707,0.551861,83379.0,83378.0,0.70932708]
[1743322248152,0.551861,83379.0,83378.0,0.70332708]
[1743322248599,0.551861,83379.0,83378.0,0.70832708]
[1743322248776,0.551861,83379.0,83378.0,0.71332708]
[1743322250176,0.551861,83379.0,83378.0,0.73040205]
[1743322250724,0.551861,83379.0,83378.0,0.59832205]
[1743322250932,0.784921,83379.0,83378.0,0.73040205]
[1743322251310,0.784921,83379.0,83378.0,0.59832205]
[1743322251703,0.784921,83379.0,83378.0,0.59332205]
[1743322252022,0.784921,83379.0,83378.0,0.58832205]
[1743322252594,0.763302,83379.0,83378.0,0.58832205]
[1743322253579,0.763302,83379.0,83378.0,0.59232205]
[1743322253787,0.763302,83379.0,83378.0,0.59632205]
[1743322254211,0.763302,83379.0,83378.0,0.59232205]
[1743322254423,0.763302,83379.0,83378.0,0.58832205]
[1743322254647,0.763302,83379.0,83378.0,0.59132205]
[1743322254858,0.763302,83379.0,83378.0,0.59532205]
[1743322257567,0.763302,83379.0,83378.0,0.59565925]
[1743322260351,0.763302,83379.0,83378.0,0.02445925]
[1743322260754,0.763302,83379.0,83378.0,0.00738428]
[1743322262331,0.311993,83376.0,83375.0,0.0003372]
[1743322262501,0.011994,83371.0,83370.0,0.10828727]
[1743322262705,1.996948,83371.0,83370.0,0.10828727]
[1743322262864,1.746668,83371.0,83370.0,0.10828727]
[1743322263238,0.551903,83365.0,83362.0,0.57136]
[1743322263641,0.56092274,83365.0,83364.0,0.01728548]
[1743322264399,0.56092274,83365.0,83364.0,0.02328548]
[1743322264808,0.56092274,83365.0,83364.0,0.01728548]
[1743322266048,0.56092274,83365.0,83364.0,0.01928548]
[1743322267177,1.12065074,83365.0,83364.0,0.01928548]
[1743322267365,1.12065074,83365.0,83364.0,0.0021686]
[1743322270629,0.56092274,83365.0,83364.0,0.0021686]
[1743322271074,0.56092274,83365.0,83364.0,0.01928731]
[1743322271275,0.56092274,83365.0,83364.0,0.01670945]
[1743322271276,0.30901974,83365.0,83364.0,0.01670945]
[1743322271587,0.251903,83365.0,83364.0,0.14560945]
[1743322271794,0.251903,83365.0,83364.0,0.16272816]
[1743322273856,0.551903,83365.0,83364.0,0.19770731]
[1743322274060,0.551903,83365.0,83364.0,0.15140731]
[1743322290349,0.551903,83365.0,83364.0,0.24614816]
[1743322290674,0.3,83365.0,83364.0,0.24614816]
[1743322290874,0.551903,83365.0,83364.0,0.29424816]
[1743322291365,0.3,83365.0,83364.0,0.53415916]
[1743322291518,0.3,83365.0,83364.0,0.29424816]
[1743322291719,0.0001686,83370.0,83369.0,0.1283]
[1743322292262,0.0001686,83370.0,83369.0,0.15994453]
[1743322293334,0.0001686,83370.0,83369.0,0.15894453]
[1743322293490,0.0121626,83370.0,83369.0,0.15894453]
[1743322293711,0.0121626,83370.0,83369.0,0.29106453]
[1743322294094,0.0121626,83370.0,83369.0,0.29206453]
[1743322294288,0.0121626,83370.0,83369.0,0.29606453]
[1743322294925,0.0121626,83370.0,83369.0,0.21586453]
[1743322296876,0.0001686,83370.0,83369.0,0.21586453]
[1743322297435,0.0001686,83370.0,83369.0,0.30805853]
[1743322298041,0.0001686,83370.0,83369.0,0.29606453]
[1743322303255,0.0001686,83370.0,83369.0,0.70049425]
[1743322309009,0.0121626,83370.0,83369.0,0.70045425]
[1743322310232,0.0001686,83370.0,83369.0,0.70045425]
[1743322311040,0.0001686,83370.0,83369.0,1.27177425]
[1743322316900,0.0001686,83370.0,83369.0,1.27211145]
[1743322321944,0.0001686,83370.0,83369.0,1.28410545]
[1743322329872,0.0001686,83370.0,83369.0,1.28910545]
[1743322330312,0.0001686,83370.0,83369.0,1.44694053]
[1743322331183,0.0001686,83370.0,83369.0,1.44194053]
[1743322331407,0.0011686,83370.0,83369.0,1.44694053]
[1743322331558,0.0011686,83370.0,83369.0,1.45194053]
[1743322331738,0.0011686,83370.0,83369.0,1.57222536]
[1743322332392,0.00022504,83379.0,83372.0,0.40326112]
[1743322332561,0.00022504,83379.0,83378.0,0.40000485]
[1743322332963,0.00022504,83379.0,83378.0,0.41702055]
[1743322334613,0.00022504,83379.0,83378.0,0.42002055]
[1743322334829,0.00022504,83379.0,83378.0,0.54230538]
[1743322335464,0.00022504,83379.0,83378.0,0.53730538]
[1743322335601,0.00022504,83379.0,83378.0,0.54330538]
[1743322336864,0.00022504,83379.0,83378.0,0.54930538]
[1743322337074,0.00022504,83379.0,83378.0,0.9525665]
[1743322340633,0.00022504,83379.0,83378.0,0.96160238]
[1743322340842,0.00022504,83379.0,83378.0,1.08188721]
[1743322341185,0.0001686,83395.0,83394.0,0.256816]
[1743322341403,0.00021569,83395.0,83394.0,0.60888375]
[1743322341600,0.00021569,83395.0,83394.0,0.62585129]
[1743322342368,0.00021569,83395.0,83394.0,0.62785129]
[1743322343421,0.00021569,83395.0,83394.0,0.62985129]
[1743322344654,0.00021569,83395.0,83394.0,1.20105129]
[1743322344858,0.03995717,83439.0,83401.0,0.251795]
[1743322345101,4.708e-05,83407.0,83406.0,0.011989]
[1743322345252,4.708e-05,83407.0,83406.0,0.251778]
[1743322345457,4.708e-05,83407.0,83406.0,0.2687076]
[1743322345854,4.708e-05,83407.0,83406.0,0.31316357]
[1743322347451,4.708e-05,83407.0,83406.0,0.32770442]
[1743322347787,0.0133192,83407.0,83406.0,0.32770442]
[1743322347946,0.0133192,83407.0,83406.0,0.28324845]
[1743322348147,0.0153192,83407.0,83406.0,0.28324845]
[1743322348491,0.0143192,83407.0,83406.0,0.28324845]
[1743322348659,0.0133192,83407.0,83406.0,0.28324845]
[1743322349056,0.0133192,83407.0,83406.0,0.28424845]
[1743322349254,0.0133192,83407.0,83406.0,0.33643991]
[1743322352124,0.0133192,83407.0,83406.0,0.28324845]
[1743322352326,0.0133192,83407.0,83406.0,0.28424845]
[1743322352504,0.0133192,83407.0,83406.0,0.28524845]
[1743322353289,4.708e-05,83407.0,83406.0,0.28524845]
[1743322353722,0.00021568,83407.0,83406.0,0.68728453]
[1743322353928,0.00021568,83407.0,83406.0,0.68928453]
[1743322354483,0.00021568,83407.0,83406.0,0.80857078]
[1743322354895,0.00021568,83407.0,83406.0,0.68928453]
[1743322359131,0.00021568,83407.0,83406.0,1.26040453]
[1743322359982,0.251758,83414.0,83407.0,0.26631485]
[1743322360177,0.251758,83414.0,83408.0,0.13204]
[1743322360377,0.251758,83414.0,83408.0,0.14896339]
[1743322360761,0.251761,83413.0,83408.0,0.14896339]
[1743322361197,0.251761,83413.0,83410.0,0.01454085]
[1743322361559,0.251761,83413.0,83412.0,0.01454085]
[1743322361768,0.251761,83413.0,83412.0,0.03145251]
[1743322361966,0.26456881,83413.0,83412.0,0.03145251]
[1743322365356,0.32353686,83413.0,83412.0,0.03145251]
[1743322365560,0.31280781,83413.0,83412.0,0.03145251]
[1743322366322,0.01280781,83413.0,83412.0,0.16372534]
[1743322366518,0.3,83413.0,83412.0,0.66349251]
[1743322366741,0.3,83414.0,83412.0,0.66349251]
[1743322367300,0.53977,83414.0,83412.0,0.53145251]
[1743322367484,0.5651161,83414.0,83413.0,0.14658085]
[1743322367869,0.5651161,83414.0,83413.0,0.16348617]
[1743322368761,0.5651161,83414.0,83413.0,0.73456617]
[1743322376777,0.5651161,83414.0,83413.0,0.60252617]
[1743322376979,0.5651161,83414.0,83413.0,0.73456617]
[1743322379345,0.5652847,83414.0,83413.0,0.73456617]
[1743322390116,0.5652847,83414.0,83413.0,0.58798532]
[1743322390674,0.5652847,83414.0,83413.0,0.72002532]
[1743322391215,0.5652847,83414.0,83413.0,0.72036252]
[1743322393619,0.5652847,83414.0,83413.0,0.716381]
[1743322396468,0.3221611,83414.0,83413.0,0.716381]
[1743322397531,0.2652847,83414.0,83413.0,0.145301]
[1743322398624,0.5652847,83414.0,83413.0,0.145301]
[1743322401000,0.3135267,83414.0,83413.0,0.36022668]
[1743322401219,0.3135267,83414.0,83413.0,0.23994185]
[1743322401827,0.3135267,83414.0,83413.0,0.49169985]
[1743322401828,0.0135267,83414.0,83413.0,0.49169985]
[1743322402022,0.011986,83425.0,83424.0,0.04101415]
[1743322402411,0.311986,83425.0,83424.0,0.05390573]
[1743322402868,0.311986,83425.0,83424.0,0.04101415]
[1743322403268,0.313986,83425.0,83424.0,0.04101415]
[1743322403420,0.302,83425.0,83424.0,0.04101415]
[1743322403621,0.0180051,83425.0,83424.0,0.04101415]
[1743322403813,0.0180051,83425.0,83424.0,0.05390515]
[1743322404011,0.0299911,83425.0,83424.0,0.05390515]
[1743322404419,0.0299911,83425.0,83424.0,0.04101415]
[1743322405981,0.0299911,83425.0,83424.0,0.05390486]
[1743322407349,0.0299911,83425.0,83424.0,0.62594486]
[1743322408317,0.0279911,83425.0,83424.0,0.62594486]
[1743322408696,0.0279911,83425.0,83424.0,0.62694486]
[1743322412235,0.0160051,83425.0,83424.0,0.70574486]
[1743322412525,0.551722,83425.0,83424.0,0.70574486]
[1743322413133,0.5680328,83425.0,83424.0,0.70574486]
[1743322414096,0.3163108,83425.0,83424.0,0.70574486]
[1743322415379,0.3282968,83425.0,83424.0,0.62694486]
[1743322415781,0.3282968,83425.0,83424.0,0.75894486]
[1743322416189,0.3284654,83425.0,83424.0,0.75894486]
[1743322416773,0.3164794,83425.0,83424.0,0.75894486]
[1743322417157,0.3164794,83425.0,83424.0,1.13095469]
[1743322417686,0.3164794,83425.0,83424.0,0.87922969]
[1743322418088,0.3164794,83425.0,83424.0,0.75894486]
[1743322418297,0.3284654,83425.0,83424.0,0.75894486]
[1743322419025,0.3019921,83425.0,83424.0,0.73247156]
[1743322423048,0.3019921,83425.0,83424.0,0.60047156]
[1743322423245,0.3019921,83425.0,83424.0,0.73247156]
[1743322428941,0.3019921,83425.0,83424.0,0.60047156]
[1743322429147,0.3019921,83425.0,83424.0,0.73247156]
[1743322431806,0.3019921,83425.0,83424.0,0.84722102]
[1743322431807,0.2900061,83425.0,83424.0,0.84722102]
[1743322432016,0.2900061,83425.0,83424.0,0.85920702]
[1743322432179,0.2900061,83425.0,83424.0,0.92442102]
[1743322433538,0.2900061,83425.0,83424.0,0.80967156]
[1743322438744,0.2900061,83425.0,83424.0,0.73247156]
[1743322438897,0.3019921,83425.0,83424.0,0.73247156]
[1743322439100,0.3019921,83425.0,83424.0,0.60047156]
[1743322439299,0.3019921,83425.0,83424.0,0.73247156]
[1743322439538,0.3019921,83425.0,83424.0,0.73280876]
[1743322441438,0.2900061,83425.0,83424.0,0.73280876]
[1743322442908,0.5417281,83425.0,83424.0,0.73280876]
[1743322446775,0.5417281,83425.0,83424.0,0.73276876]
[1743322451840,0.2900061,83425.0,83424.0,0.73276876]
[1743322452049,0.3019921,83425.0,83424.0,0.73276876]
[1743322465782,0.3019921,83425.0,83424.0,0.81108399]
[1743322470316,0.3019921,83425.0,83424.0,0.73276876]
[1743322475432,0.3019921,83425.0,83424.0,0.60080876]
[1743322475565,0.3019921,83425.0,83424.0,0.73276876]
[1743322477347,0.3019921,83425.0,83424.0,0.60080876]
[1743322477550,0.3019921,83425.0,83424.0,0.73276876]
[1743322480594,0.3019921,83425.0,83424.0,0.60080876]
[1743322480800,0.3019921,83425.0,83424.0,0.73276876]
[1743322481413,0.0164794,83425.0,83424.0,0.84634924]
[1743322481623,0.0202257,83425.0,83424.0,0.73276876]
[1743322481796,0.0121546,83425.0,83424.0,0.73276876]
[1743322482813,0.0001686,83425.0,83424.0,0.73276876]
[1743322483028,0.02046314,83425.0,83424.0,0.98449376]
[1743322483222,0.002,83439.0,83435.0,0.251692]
[1743322483449,0.01246348,83436.0,83435.0,0.15935553]
[1743322483655,0.002,83439.0,83438.0,0.251682]
[1743322483870,0.002,83439.0,83438.0,0.02738675]
[1743322484237,0.002,83439.0,83438.0,0.14767158]
[1743322484360,0.02255731,83439.0,83438.0,0.14667158]
[1743322484572,0.011984,83441.0,83439.0,0.01454085]
[1743322484774,0.011984,83441.0,83440.0,0.01267337]
[1743322485029,0.011984,83441.0,83439.0,0.01454085]
[1743322485329,0.011984,83441.0,83440.0,0.11861295]
[1743322485559,0.2518236,83448.0,83440.0,0.54817388]
[1743322485728,0.0001686,83448.0,83444.0,0.011984]
[1743322485942,0.0001686,83448.0,83446.0,0.011983]
[1743322486139,0.02032666,83448.0,83447.0,0.09414085]
[1743322486363,0.0001686,83448.0,83447.0,0.10679371]
[1743322488753,0.02067702,83448.0,83447.0,0.10679371]
[1743322489386,0.02067702,83448.0,83447.0,0.10979371]
[1743322489762,0.02067702,83448.0,83447.0,0.11279371]
[1743322495485,0.02067702,83448.0,83447.0,0.68367371]
[1743322495979,0.02067702,83448.0,83447.0,0.60407371]
[1743322500065,0.03266002,83448.0,83447.0,0.60407371]
[1743322502895,0.03266002,83448.0,83447.0,0.72145286]
[1743322504233,0.03266002,83448.0,83447.0,0.58953286]
[1743322504455,0.03266002,83448.0,83447.0,0.72145286]
[1743322504652,0.03266002,83448.0,83447.0,0.73599371]
[1743322504916,0.03266002,83448.0,83447.0,0.83140405]
[1743322505094,0.03266002,83448.0,83447.0,0.73599371]
[1743322510476,0.02067702,83448.0,83447.0,0.73599371]
[1743322510878,0.02067702,83448.0,83447.0,0.74797671]
[1743322511422,0.0001686,83448.0,83447.0,0.82577671]
[1743322511609,0.0001686,83448.0,83447.0,0.87217671]
[1743322511809,0.0001686,83448.0,83447.0,0.99246154]
[1743322512637,0.0001686,83448.0,83447.0,0.98946154]
[1743322512997,0.0001686,83448.0,83447.0,0.99346154]
[1743322513572,0.0001686,83448.0,83447.0,0.87017671]
[1743322513774,0.011982,83456.0,83449.0,0.01170103]
[1743322513978,0.011982,83456.0,83451.0,0.251642]
[1743322514131,0.251629,83456.0,83452.0,0.01454085]
[1743322514334,0.251629,83456.0,83453.0,0.12028483]
[1743322514531,0.251629,83456.0,83453.0,0.13291836]
[1743322515639,0.251629,83456.0,83453.0,0.13491836]
[1743322515815,0.011982,83455.0,83453.0,0.13491836]
[1743322516022,0.251634,83455.0,83453.0,0.13491836]
[1743322516485,0.27764999,83455.0,83453.0,0.13491836]
[1743322516694,0.011982,83454.0,83453.0,0.14945921]
[1743322516992,0.011982,83454.0,83453.0,0.03117438]
[1743322517165,0.011982,83454.0,83453.0,0.43221046]
[1743322517547,0.011982,83454.0,83453.0,0.43421046]
[1743322517750,0.011982,83454.0,83453.0,0.43221046]
[1743322517953,0.011982,83454.0,83453.0,0.43021046]